fUSD/lending_fUSD_20260404
["ID","MTS","AMOUNT","RATE_DAILY","PERIOD"]
[419715806,1775332289785,-500.0,0.00035726,9]
[419715807,1775332289796,-500.0,0.00035726,9]
[419715808,1775332289807,-151.95085258,0.00035726,9]
[419715809,1775332289817,-500.0,0.00035726,9]
[419715810,1775332289828,-505.56097341,0.00035726,9]
[419715811,1775332289839,-300.0,0.00035726,2]
[419715812,1775332289850,-500.0,0.00035726,9]
[419715813,1775332289861,-500.0,0.00035726,9]
[419715814,1775332289871,-405.37730807,0.00035726,9]
[419715815,1775332289882,-500.0,0.00035726,9]
[419715816,1775332289893,-339.11313227,0.00035726,9]
[419715817,1775332289903,-4906.33,0.00035726,9]
[419715818,1775332289914,-501.06523646,0.00035726,9]
[419715819,1775332289925,-500.0,0.00035726,9]
[419715820,1775332289935,-1247.96,0.00035726,9]
[419715821,1775332289947,-500.0,0.00035726,9]
[419715822,1775332289957,-504.22784065,0.00035726,9]
[419715823,1775332289968,-1272.39,0.00035726,9]
[419715824,1775332289979,-500.0,0.00035726,9]
[419715825,1775332289990,-500.0,0.00035726,9]
[419715826,1775332290000,-847.31,0.00035726,9]
[419715827,1775332290010,-500.0,0.00035726,9]
[419715828,1775332290021,-322.4698402,0.00035726,9]
[419715829,1775332290031,-2712.78,0.00035726,9]
[419715830,1775332290046,-500.0,0.00035726,9]
[419715831,1775332290057,-500.0,0.00035726,9]
[419715832,1775332290068,-500.0,0.00035726,9]
[419715833,1775332290078,-1482.77,0.00035726,9]
[419715834,1775332290089,-500.0,0.00035726,120]
[419715835,1775332290100,-1648.41,0.00035726,9]
[419715836,1775332290112,-541.58770181,0.00035726,9]
[419715837,1775332290123,-784.21,0.00035726,9]
[419715838,1775332290134,-500.0,0.00035726,9]
[419715839,1775332290145,-528.46586874,0.00035726,9]
[419715840,1775332290156,-2678.07,0.00035726,9]
[419715841,1775332290166,-500.0,0.00035726,9]
[419715842,1775332290176,-1057.26,0.00035726,9]
[419715843,1775332290187,-506.80551497,0.00035726,9]
[419715844,1775332290198,-3119.66,0.00035726,9]
[419715845,1775332290209,-500.0,0.00035726,5]
[419715846,1775332290220,-500.0,0.00035726,9]
[419715847,1775332290230,-3255.09,0.00035726,9]
[419715848,1775332290241,-500.0,0.00035726,9]
[419715849,1775332290251,-500.0,0.00035726,9]
[419715850,1775332290262,-500.0,0.00035726,9]
[419715851,1775332290273,-2834.56,0.00035726,9]
[419715852,1775332290284,-500.0,0.00035726,9]
[419715853,1775332290294,-500.0,0.00035726,9]
[419715854,1775332290305,-919.38,0.00035726,9]
[419715855,1775332290316,-500.0,0.00035726,9]
[419715856,1775332290326,-500.0,0.00035726,9]
[419715857,1775332290338,-500.0,0.00035726,9]
[419715858,1775332290349,-500.0,0.00035726,9]
[419715859,1775332290359,-500.0,0.00035726,9]
[419715860,1775332290371,-500.0,0.00035726,9]
[419715861,1775332290382,-1324.69,0.00035726,9]
[419715862,1775332290392,-1524.5,0.00035726,9]
[419715863,1775332290403,-3851.02,0.00035726,9]
[419715864,1775332290413,-500.0,0.00035726,9]
[419715865,1775332290424,-500.0,0.00035726,9]
[419715866,1775332290435,-1860.07,0.00035726,9]
[419715867,1775332290446,-500.0,0.00035726,9]
[419715868,1775332290457,-991.9,0.00035726,9]
[419715869,1775332290468,-500.0,0.00035726,9]
[419715870,1775332290480,-1457.74,0.00035726,9]
[419715871,1775332290491,-739.68,0.00035726,9]
[419715872,1775332290502,-4759.97,0.00035726,9]
[419715873,1775332290513,-500.0,0.00035726,9]
[419715874,1775332290524,-1835.76,0.00035726,9]
[419715875,1775332290535,-864.07,0.00035726,9]
[419715876,1775332290546,-500.0,0.00035726,9]
[419715877,1775332290557,-500.0,0.00035726,9]
[419715878,1775332290855,-500.0,0.00035726,9]
[419715879,1775332290865,-500.0,0.00035726,9]
[419715880,1775332290875,-2691.67,0.00035726,9]
[419715881,1775332290885,-500.0,0.00035726,9]
[419715882,1775332290895,-500.0,0.00035726,9]
[419715883,1775332290904,-500.0,0.00035726,9]
[419715884,1775332290914,-500.0,0.00035726,9]
[419715885,1775332290923,-500.0,0.00035726,9]
[419715886,1775332290932,-500.0,0.00035726,9]
[419715887,1775332290942,-500.0,0.00035726,9]
[419715888,1775332290962,-500.0,0.00035726,9]
[419715889,1775332290973,-500.0,0.00035726,9]
[419715890,1775332290984,-500.0,0.00035726,9]
[419715891,1775332290994,-500.0,0.00035726,9]
[419715892,1775332291004,-500.0,0.00035726,9]
[419715893,1775332291014,-500.0,0.00035726,9]
[419715894,1775332291024,-500.0,0.00035726,9]
[419715895,1775332291034,-500.0,0.00035726,9]
[419715896,1775332291044,-500.0,0.00035726,9]
[419715897,1775332291055,-2429.23,0.00035726,9]
[419715898,1775332291065,-832.88,0.00035726,9]
[419715899,1775332291075,-1552.09,0.00035726,9]
[419715900,1775332291085,-500.0,0.00035726,9]
[419715901,1775332291095,-500.0,0.00035726,9]
[419715902,1775332291105,-500.0,0.00035726,9]
[419715903,1775332291115,-500.0,0.00035726,9]
[419715904,1775332291125,-2300.44,0.00035726,9]
[419715905,1775332291135,-500.0,0.00035726,9]
[419715906,1775332291146,-722.2,0.00035726,9]
[419715907,1775332291155,-500.0,0.00035726,9]
[419715908,1775332291165,-500.0,0.00035726,9]
[419715909,1775332291175,-500.0,0.00035726,9]
[419715910,1775332291185,-500.0,0.00035726,9]
[419715911,1775332291194,-500.0,0.00035726,9]
[419715912,1775332291204,-1875.66,0.00035726,9]
[419715913,1775332291214,-443.00612805,0.00035726,9]
[419715914,1775332291224,-856.85,0.00035726,9]
[419715915,1775332291234,-500.0,0.00035726,9]
[419715916,1775332291244,-500.0,0.00035726,9]
[419715917,1775332291253,-1602.47,0.00035726,9]
[419715918,1775332291263,-500.0,0.00035726,9]
[419715919,1775332291273,-500.0,0.00035726,9]
[419715920,1775332291283,-500.0,0.00035726,9]
[419715921,1775332291293,-500.0,0.00035726,9]
[419715922,1775332291303,-227.12933459,0.00035726,9]
[419715923,1775332291313,-500.0,0.00035726,9]
[419715924,1775332291323,-500.0,0.00035726,9]
[419715925,1775332291333,-634.93,0.00035726,9]
[419715926,1775332291342,-2561.66,0.00035726,9]
[419715927,1775332291353,-2085.41,0.00035726,9]
[419715928,1775332291364,-500.0,0.00035726,9]
[419715929,1775332291376,-500.0,0.00035726,9]
[419715930,1775332291386,-500.0,0.00035726,9]
[419715931,1775332291397,-667.0,0.00035726,9]
[419715932,1775332291407,-1870.36,0.00035726,9]
[419715933,1775332291417,-500.0,0.00035726,9]
[419715934,1775332291426,-500.0,0.00035726,9]
[419715935,1775332291436,-500.0,0.00035726,9]
[419715936,1775332291447,-533.73,0.00035726,9]
[419715937,1775332291456,-500.0,0.00035726,9]
[419715938,1775332291467,-500.0,0.00035726,9]
[419715939,1775332291477,-1716.24,0.00035726,9]
[419715940,1775332291487,-1534.12,0.00035726,9]
[419715941,1775332291496,-1548.87,0.00035726,9]
[419715942,1775332291506,-500.0,0.00035726,9]
[419715943,1775332291515,-1477.04,0.00035726,9]
[419715944,1775332291525,-500.0,0.00035726,9]
[419715945,1775332291535,-500.0,0.00035726,9]
[419715946,1775332291544,-3546.04,0.00035726,9]
[419715947,1775332291554,-500.0,0.00035726,9]
[419715948,1775332291564,-500.0,0.00035726,9]
[419715949,1775332291575,-500.0,0.00035726,9]
[419715950,1775332291585,-1514.21,0.00035726,9]
[419715951,1775332291595,-500.0,0.00035726,9]
[419715952,1775332291605,-1144.34,0.00035726,9]
[419715953,1775332291615,-931.09,0.00035726,9]
[419715954,1775332291625,-500.0,0.00035726,9]
[419715955,1775332291636,-500.0,0.00035726,9]
[419715956,1775332291645,-500.0,0.00035726,9]
[419715957,1775332291655,-500.0,0.00035726,9]
[419715958,1775332291665,-796.08,0.00035726,9]
[419715959,1775332291675,-1253.59,0.00035726,9]
[419715960,1775332291685,-500.0,0.00035726,9]
[419715961,1775332291694,-500.0,0.00035726,9]
[419715962,1775332291703,-500.0,0.00035726,9]
[419715963,1775332291712,-500.0,0.00035726,9]
[419715964,1775332291723,-1918.72,0.00035726,9]
[419715965,1775332291732,-1526.6,0.00035726,9]
[419715966,1775332291741,-500.0,0.00035726,9]
[419715967,1775332291751,-500.0,0.00035726,9]
[419715968,1775332291760,-500.0,0.00035726,9]
[419715969,1775332291770,-500.0,0.00035726,9]
[419715970,1775332291780,-500.0,0.00035726,9]
[419715971,1775332291790,-1585.21,0.00035726,9]
[419715972,1775332291800,-500.0,0.00035726,9]
[419715973,1775332291810,-514.71,0.00035726,9]
[419715974,1775332291820,-1721.53,0.00035726,9]
[419715975,1775332291829,-500.0,0.00035726,9]
[419715976,1775332291839,-500.0,0.00035726,9]
[419715977,1775332291848,-500.0,0.00035726,9]
[419715978,1775332291858,-500.0,0.00035726,9]
[419715979,1775332291868,-500.0,0.00035726,9]
[419715980,1775332291877,-500.0,0.00035726,9]
[419715981,1775332291887,-500.0,0.00035726,9]
[419715982,1775332291896,-500.0,0.00035726,9]
[419715983,1775332291906,-227.74722098,0.00035726,9]
[419715984,1775332291915,-192.33091287,0.00035726,9]
[419715985,1775332291925,-1809.46,0.00035726,9]
[419715986,1775332291935,-500.0,0.00035726,9]
[419715987,1775332291944,-500.0,0.00035726,9]
[419715988,1775332291955,-897.26,0.00035726,9]
[419715989,1775332291965,-1413.82,0.00035726,9]
[419715990,1775332291975,-500.0,0.00035726,9]
[419715991,1775332291985,-506.87882014,0.00035726,9]
[419715992,1775332291995,-500.0,0.00035726,9]
[419715993,1775332292007,-500.0,0.00035726,9]
[419715994,1775332292016,-346.79699239,0.00035726,9]
[419715995,1775332292026,-957.36,0.00035726,9]
[419715996,1775332292036,-500.0,0.00035726,9]
[419715997,1775332292046,-500.0,0.00035726,9]
[419715998,1775332292056,-500.0,0.00035726,9]
[419715999,1775332292065,-500.0,0.00035726,9]
[419716000,1775332292075,-500.0,0.00035726,9]
[419716001,1775332292084,-961.19,0.00035726,9]
[419716002,1775332292094,-4322.78,0.00035726,9]
[419716003,1775332292104,-500.0,0.00035726,9]
[419716004,1775332292113,-644.96390106,0.00035726,9]
[419716005,1775332292123,-500.0,0.00035726,9]
[419716006,1775332292134,-500.0,0.00035726,9]
[419716007,1775332292143,-500.0,0.00035726,9]
[419716008,1775332292153,-1482.98,0.00035726,9]
[419716009,1775332292162,-804.52,0.00035726,9]
[419716010,1775332292172,-3934.55,0.00035726,9]
[419716011,1775332292182,-500.0,0.00035726,9]
[419716012,1775332292192,-500.0,0.00035726,9]
[419716013,1775332292201,-500.0,0.00035726,9]
[419716014,1775332292211,-532.36352348,0.00035726,9]
[419716015,1775332292221,-500.0,0.00035726,9]
[419716016,1775332292230,-746.22,0.00035726,7]
[419716017,1775332292240,-4305.65,0.00035726,9]
[419716018,1775332292249,-500.0,0.00035726,9]
[419716019,1775332292260,-500.0,0.00035726,9]
[419716020,1775332292269,-500.0,0.00035726,9]
[419716021,1775332292283,-1369.12,0.00035726,9]
[419716022,1775332292292,-500.0,0.00035726,9]
[419716023,1775332292303,-500.0,0.00035726,9]
[419716024,1775332292314,-1177.45,0.00035726,9]
[419716025,1775332292324,-500.0,0.00035726,9]
[419716026,1775332292334,-500.0,0.00035726,9]
[419716027,1775332292344,-798.28,0.00035726,9]
[419716028,1775332292354,-500.0,0.00035726,9]
[419716029,1775332292364,-500.0,0.00035726,9]
[419716030,1775332292373,-1917.88,0.00035726,9]
[419716031,1775332292384,-2157.58,0.00035726,9]
[419716032,1775332292393,-500.0,0.00035726,9]
[419716033,1775332292403,-500.0,0.00035726,9]
[419716034,1775332292414,-2063.41,0.00035726,9]
[419716035,1775332292424,-500.0,0.00035726,9]
[419716036,1775332292434,-500.0,0.00035726,9]
[419716037,1775332292444,-500.0,0.00035726,9]
[419716038,1775332292454,-500.0,0.00035726,9]
[419716039,1775332292464,-500.0,0.00035726,9]
[419716040,1775332292474,-3118.14,0.00035726,9]
[419716041,1775332292484,-500.0,0.00035726,9]
[419716042,1775332292494,-500.0,0.00035726,9]
[419716043,1775332292504,-500.0,0.00035726,9]
[419716044,1775332292514,-500.0,0.00035726,9]
[419716045,1775332292523,-2737.83,0.00035726,4]
[419716046,1775332292533,-500.0,0.00035726,9]
[419716047,1775332292542,-500.0,0.00035726,9]
[419716048,1775332292551,-1000.0,0.00035726,9]
[419716049,1775332292561,-500.0,0.00035726,9]
[419716050,1775332292570,-1563.18,0.00035726,9]
[419716051,1775332292579,-500.0,0.00035726,9]
[419716052,1775332292589,-500.0,0.00035726,9]
[419716053,1775332292598,-4060.34,0.00035726,9]
[419716054,1775332292607,-1575.52,0.00035726,9]
[419716055,1775332292616,-322.38233512,0.00035726,9]
[419716056,1775332292625,-278.4139176,0.00035726,9]
[419716057,1775332292634,-605.12,0.00035726,9]
[419716058,1775332292643,-500.0,0.00035726,9]
[419716059,1775332292652,-500.0,0.00035726,9]
[419716060,1775332292662,-500.0,0.00035726,9]
[419716061,1775332292671,-500.0,0.00035726,9]
[419716062,1775332292681,-646.24986877,0.00035726,9]
[419716063,1775332292691,-6051.39,0.00035726,9]
[419716064,1775332292700,-500.0,0.00035726,9]
[419716065,1775332292709,-953.62,0.00035726,9]
[419716066,1775332292718,-837.63,0.00035726,9]
[419716067,1775332292728,-534.67901345,0.00035726,9]
[419716068,1775332292738,-500.0,0.00035726,9]
[419716069,1775332292748,-506.45185792,0.00035726,9]
[419716070,1775332292759,-500.0,0.00035726,9]
[419716071,1775332292768,-544.92,0.00035726,9]
[419716072,1775332292778,-500.0,0.00035726,9]
[419716073,1775332292789,-15090.94,0.00035726,9]
[419716074,1775332292798,-500.0,0.00035726,9]
[419716075,1775332292808,-500.0,0.00035726,9]
[419716076,1775332292817,-500.0,0.00035726,9]
[419716077,1775332292827,-500.0,0.00035726,9]
[419716078,1775332292835,-500.0,0.00035726,9]
[419716079,1775332292845,-500.0,0.00035726,9]
[419716080,1775332292854,-500.0,0.00035726,9]
[419716081,1775332292865,-500.0,0.00035726,9]
[419716082,1775332292874,-652.29,0.00035726,9]
[419716083,1775332292885,-500.0,0.00035726,9]
[419716084,1775332292896,-500.0,0.00035726,9]
[419716085,1775332292905,-995.42,0.00035726,9]
[419716086,1775332292914,-767.44,0.00035726,9]
[419716087,1775332292924,-500.0,0.00035726,9]
[419716088,1775332292934,-500.0,0.00035726,9]
[419716089,1775332292943,-500.0,0.00035726,9]
[419716090,1775332292953,-500.0,0.00035726,9]
[419716091,1775332292962,-884.36,0.00035726,9]
[419716092,1775332292972,-1203.6,0.00035726,9]
[419716093,1775332292982,-500.0,0.00035726,9]
[419716094,1775332292993,-500.0,0.00035726,9]
[419716095,1775332293002,-500.0,0.00035726,9]
[419716096,1775332293012,-500.0,0.00035726,9]
[419716097,1775332293021,-500.0,0.00035726,9]
[419716098,1775332293031,-500.0,0.00035726,9]
[419716099,1775332293041,-1161.81,0.00035726,9]
[419716100,1775332293051,-5453.99,0.00035726,9]
[419716101,1775332293060,-845.06,0.00035726,9]
[419716102,1775332293069,-205.92169057,0.00035726,9]
[419716103,1775332293079,-2834.0,0.00035794,11]
[419716104,1775332293088,-578.60686938,0.00035834,9]
[419716105,1775332293098,-578.60686938,0.00035834,9]
[419716106,1775332293107,-578.60686938,0.00035834,9]
[419716107,1775332293116,-578.60686937,0.00035834,9]
[419716108,1775332293126,-578.60686937,0.00035834,9]
[419716109,1775332293135,-578.60686937,0.00035834,9]
[419716110,1775332293145,-194.53738797,0.00035835,9]
[419716111,1775332293155,-643.00750457,0.00035835,9]
[419716112,1775332293164,-500.0,0.00035835,9]
[419716113,1775332293174,-500.0,0.00035835,9]
[419716114,1775332293184,-500.0,0.00035835,9]
[419716115,1775332293193,-500.0,0.00035835,9]
[419716116,1775332293203,-186.19990173,0.00035835,9]
[419716117,1775332293213,-500.0,0.00035835,9]
[419716118,1775332293222,-500.0,0.00035835,9]
[419716119,1775332293231,-500.0,0.00035835,9]
[419716120,1775332293241,-500.0,0.00035835,9]
[419716121,1775332293250,-234.14700122,0.00035835,9]
[419716122,1775332293259,-500.71764546,0.00035835,9]
[419716123,1775332293268,-500.0,0.00035835,9]
[419716124,1775332293277,-500.0,0.00035835,9]
[419716125,1775332293287,-500.0,0.00035835,9]
[419716126,1775332293296,-500.72590811,0.00035835,9]
[419716127,1775332293305,-500.0,0.00035835,9]
[419716128,1775332293315,-500.0,0.00035835,9]
[419716129,1775332293324,-500.0,0.00035835,9]
[419716130,1775332293333,-500.0,0.00035835,9]
[419716131,1775332293343,-500.0,0.00035835,9]
[419716132,1775332293353,-500.0,0.00035835,9]
[419716133,1775332293362,-500.0,0.00035835,9]
[419716134,1775332293372,-500.0,0.00035835,9]
[419716135,1775332293381,-513.97530565,0.00035835,9]
[419716136,1775332293390,-320.65073766,0.00035835,9]
[419716137,1775332293400,-500.0,0.00035835,9]
[419716138,1775332293409,-500.0,0.00035835,9]
[419716139,1775332293419,-500.0,0.00035835,9]
[419716140,1775332293429,-500.0,0.00035835,9]
[419716141,1775332293438,-500.0,0.00035835,9]
[419716142,1775332293449,-501.06293236,0.00035835,9]
[419716143,1775332293458,-500.0,0.00035835,9]
[419716144,1775332293468,-500.0,0.00035835,9]
[419716145,1775332293477,-1728.47,0.00035835,9]
[419716146,1775332293487,-658.66,0.00035835,9]
[419716147,1775332293496,-500.0,0.00035835,9]
[419716148,1775332293506,-500.0,0.00035835,9]
[419716149,1775332293517,-500.0,0.00035835,9]
[419716150,1775332293526,-500.0,0.00035835,9]
[419716151,1775332293535,-514.73434139,0.00035835,9]
[419716152,1775332293545,-2616.79,0.00035835,9]
[419716153,1775332293554,-649.17955511,0.00035835,9]
[419716154,1775332293563,-500.0,0.00035835,9]
[419716155,1775332293573,-500.0,0.00035835,9]
[419716156,1775332293583,-500.0,0.00035835,9]
[419716157,1775332293592,-500.0,0.00035835,9]
[419716158,1775332293602,-500.0,0.00035835,9]
[419716159,1775332293612,-533.49,0.00035835,9]
[419716160,1775332293621,-500.0,0.00035835,9]
[419716161,1775332293631,-500.0,0.00035835,9]
[419716162,1775332293641,-500.0,0.00035835,9]
[419716163,1775332293651,-500.0,0.00035835,9]
[419716164,1775332293660,-500.0,0.00035835,9]
[419716165,1775332293669,-500.0,0.00035835,9]
[419716166,1775332293678,-500.0,0.00035835,9]
[419716167,1775332293688,-500.0,0.00035835,9]
[419716168,1775332293697,-500.0,0.00035835,9]
[419716169,1775332293707,-500.0,0.00035835,9]
[419716170,1775332293716,-500.0,0.00035835,9]
[419716171,1775332293725,-500.0,0.00035835,9]
[419716172,1775332293734,-500.0,0.00035835,9]
[419716173,1775332293743,-500.0,0.00035835,9]
[419716174,1775332293753,-500.0,0.00035835,9]
[419716175,1775332293762,-262.35320041,0.00035835,9]
[419716176,1775332293771,-500.0,0.00035835,9]
[419716177,1775332293780,-500.0,0.00035835,9]
[419716178,1775332293789,-500.0,0.00035835,9]
[419716179,1775332293798,-500.0,0.00035835,9]
[419716180,1775332293812,-536.00406795,0.00035835,9]
[419716181,1775332293821,-500.0,0.00035835,9]
[419716182,1775332293830,-634.23,0.00035835,9]
[419716183,1775332293840,-795.8,0.00035835,9]
[419716184,1775332293850,-585.2925686,0.00035835,9]
[419716185,1775332293860,-500.0,0.00035835,9]
[419716186,1775332293870,-500.0,0.00035835,9]
[419716187,1775332293880,-500.0,0.00035835,9]
[419716188,1775332293889,-500.0,0.00035835,9]
[419716189,1775332293900,-500.0,0.00035835,9]
[419716190,1775332293910,-500.0,0.00035835,2]
[419716191,1775332293920,-500.0,0.00035835,9]
[419716192,1775332293930,-500.0,0.00035835,9]
[419716193,1775332293939,-500.0,0.00035835,9]
[419716194,1775332293949,-500.0,0.00035835,9]
[419716195,1775332293959,-500.0,0.00035835,9]
[419716196,1775332293968,-500.0,0.00035835,9]
[419716197,1775332293978,-345.79976955,0.00035835,9]
[419716198,1775332293988,-500.0,0.00035835,9]
[419716199,1775332293998,-500.0,0.00035835,9]
[419716200,1775332294008,-500.0,0.00035835,9]
[419716201,1775332294018,-500.0,0.00035835,9]
[419716202,1775332294027,-500.0,0.00035835,9]
[419716203,1775332294037,-500.0,0.00035835,9]
[419716204,1775332294047,-500.0,0.00035835,9]
[419716205,1775332294057,-504.71740212,0.00035835,9]
[419716206,1775332294066,-500.0,0.00035835,9]
[419716207,1775332294077,-500.0,0.00035835,9]
[419716208,1775332294087,-500.0,0.00035835,9]
[419716209,1775332294099,-500.0,0.00035835,9]
[419716210,1775332294109,-500.0,0.00035835,9]
[419716211,1775332294119,-500.0,0.00035835,9]
[419716212,1775332294128,-531.16,0.00035835,9]
[419716213,1775332294138,-500.0,0.00035835,9]
[419716214,1775332294148,-615.19630822,0.00035835,9]
[419716215,1775332294158,-501.82782864,0.00035835,9]
[419716216,1775332294167,-1812.29,0.00035835,9]
[419716217,1775332294177,-500.0,0.00035835,9]
[419716218,1775332294187,-500.0,0.00035835,9]
[419716219,1775332294197,-500.0,0.00035835,9]
[419716220,1775332294206,-1052.58,0.00035835,9]
[419716221,1775332294216,-500.0,0.00035835,9]
[419716222,1775332294226,-500.0,0.00035835,9]
[419716223,1775332294236,-500.0,0.00035835,9]
[419716224,1775332294245,-500.0,0.00035835,9]
[419716225,1775332294254,-500.0,0.00035835,9]
[419716226,1775332294263,-500.0,0.00035835,9]
[419716227,1775332294273,-513.49896015,0.00035835,9]
[419716228,1775332294282,-503.77,0.00035835,9]
[419716229,1775332294293,-500.0,0.00035835,9]
[419716230,1775332294303,-500.0,0.00035835,9]
[419716231,1775332294314,-500.0,0.00035835,9]
[419716232,1775332294323,-500.0,0.00035835,9]
[419716233,1775332294333,-500.0,0.00035835,9]
[419716234,1775332294343,-500.0,0.00035835,9]
[419716235,1775332294352,-1592.56,0.00035835,9]
[419716236,1775332294362,-500.0,0.00035835,9]
[419716237,1775332294371,-500.0,0.00035835,9]
[419716238,1775332294381,-500.0,0.00035835,9]
[419716239,1775332294391,-1622.77,0.00035835,9]
[419716240,1775332294401,-500.0,0.00035835,9]
[419716241,1775332294411,-500.0,0.00035835,9]
[419716242,1775332294420,-500.0,0.00035835,9]
[419716243,1775332294431,-500.0,0.00035835,9]
[419716244,1775332294441,-500.0,0.00035835,9]
[419716245,1775332294451,-500.0,0.00035835,9]
[419716246,1775332294461,-500.0,0.00035835,9]
[419716247,1775332294471,-500.0,0.00035835,9]
[419716248,1775332294480,-500.0,0.00035835,9]
[419716249,1775332294491,-1201.59,0.00035835,9]
[419716250,1775332294501,-521.71288199,0.00035835,9]
[419716251,1775332294809,-500.0,0.00035835,9]
[419716252,1775332294820,-500.0,0.00035835,9]
[419716253,1775332294830,-522.32756879,0.00035835,9]
[419716254,1775332294842,-500.0,0.00035835,9]
[419716255,1775332294852,-500.0,0.00035835,9]
[419716256,1775332294861,-500.0,0.00035835,9]
[419716257,1775332294871,-500.0,0.00035835,9]
[419716258,1775332294881,-500.0,0.00035835,9]
[419716259,1775332294890,-1721.74,0.00035835,9]
[419716260,1775332294900,-500.0,0.00035835,9]
[419716261,1775332294909,-500.0,0.00035835,9]
[419716262,1775332294918,-500.0,0.00035835,9]
[419716263,1775332294928,-500.0,0.00035835,9]
[419716264,1775332294937,-500.0,0.00035835,9]
[419716265,1775332294946,-500.0,0.00035835,9]
[419716266,1775332294957,-500.0,0.00035835,9]
[419716267,1775332294967,-500.0,0.00035835,9]
[419716268,1775332294977,-500.0,0.00035835,9]
[419716269,1775332294986,-500.0,0.00035835,9]
[419716270,1775332294996,-500.0,0.00035835,9]
[419716271,1775332295005,-530.9,0.00035835,9]
[419716272,1775332295015,-500.0,0.00035835,9]
[419716273,1775332295025,-1141.67,0.00035835,9]
[419716274,1775332295034,-534.27139428,0.00035835,9]
[419716275,1775332295044,-523.49,0.00035835,9]
[419716276,1775332295054,-502.21911273,0.00035835,9]
[419716277,1775332295063,-1736.67,0.00035835,9]
[419716278,1775332295072,-500.0,0.00035835,9]
[419716279,1775332295082,-500.0,0.00035835,9]
[419716280,1775332295091,-500.0,0.00035835,9]
[419716281,1775332295100,-500.0,0.00035835,9]
[419716282,1775332295110,-500.0,0.00035835,9]
[419716283,1775332295120,-500.0,0.00035835,9]
[419716284,1775332295130,-500.0,0.00035835,9]
[419716285,1775332295139,-329.37496736,0.00035835,9]
[419716286,1775332295150,-500.0,0.00035835,9]
[419716287,1775332295160,-500.0,0.00035835,9]
[419716288,1775332295170,-500.0,0.00035835,9]
[419716289,1775332295180,-1294.2,0.00035835,9]
[419716290,1775332295190,-500.0,0.00035835,9]
[419716291,1775332295200,-1506.39,0.00035835,9]
[419716292,1775332295210,-500.0,0.00035835,9]
[419716293,1775332295221,-500.0,0.00035835,9]
[419716294,1775332295231,-1626.06,0.00035835,9]
[419716295,1775332295242,-500.0,0.00035835,9]
[419716296,1775332295252,-500.0,0.00035835,9]
[419716297,1775332295262,-500.0,0.00035835,9]
[419716298,1775332295271,-500.0,0.00035835,2]
[419716299,1775332295281,-500.0,0.00035835,9]
[419716300,1775332295291,-507.15347162,0.00035835,9]
[419716301,1775332295301,-500.0,0.00035835,9]
[419716302,1775332295311,-500.0,0.00035835,9]
[419716303,1775332295320,-500.0,0.00035835,9]
[419716304,1775332295330,-500.0,0.00035835,9]
[419716305,1775332295340,-500.0,0.00035835,2]